[Event "Kvibergspelen September 2019"]
[Site "Prioritet Serneke Arena, Krutvagen 2, Gothenburg, Sweden"]
[Date "2019.09.29"]
[Round "7.12"]
[White "Sidorchuk, Dmitry"]
[Black "Nygren, Kim"]
[Result "0-1"]
[TimeControl "15 minutes + 5 seconds per move from move one (Round 1 - 4) / 90 minutes + 30 seconds per move from move one (Round 5 - 8)"]
[WhiteFideId "14110903"]
[BlackFideId "1706136"]
[WhiteElo "2266"]
[BlackElo "2171"]

1. d4 {[%clk 01:30:30]} {[%emt 00:09:43]} Nf6 {[%clk 01:22:35]} {[%emt
00:08:32]} 2. c4 {[%clk 01:30:30]} {[%emt 00:00:31]} g6 {[%clk 01:22:57]}
{[%emt 00:00:08]} 3. Nc3 {[%clk 01:30:55]} {[%emt 00:00:05]} Bg7 {[%clk
01:23:10]} {[%emt 00:00:17]} 4. e4 {[%clk 01:31:19]} {[%emt 00:00:05]} d6
{[%clk 01:23:37]} {[%emt 00:00:04]} 5. Nf3 {[%clk 01:31:35]} {[%emt 00:00:14]}
O-O {[%clk 01:24:01]} {[%emt 00:00:06]} 6. Be2 {[%clk 01:32:02]} {[%emt
00:00:02]} e5 {[%clk 01:24:23]} {[%emt 00:00:09]} 7. O-O {[%clk 01:32:26]}
{[%emt 00:00:06]} Nc6 {[%clk 01:24:47]} {[%emt 00:00:06]} 8. d5 {[%clk
01:32:51]} {[%emt 00:00:05]} Ne7 {[%clk 01:25:14]} {[%emt 00:00:03]} 9. b4
{[%clk 01:33:14]} {[%emt 00:00:08]} Nh5 {[%clk 01:25:07]} {[%emt 00:00:37]} 10.
Re1 {[%clk 01:33:19]} {[%emt 00:00:23]} h6 {[%clk 01:25:07]} {[%emt 00:00:31]}
11. Nd2 {[%clk 01:30:27]} {[%emt 00:03:22]} Nf4 {[%clk 01:22:46]} {[%emt
00:02:51]} 12. Bf1 {[%clk 01:30:54]} {[%emt 00:00:03]} f5 {[%clk 01:22:58]}
{[%emt 00:00:18]} 13. Nb3 {[%clk 01:21:16]} {[%emt 00:10:08]} g5 {[%clk
01:22:59]} {[%emt 00:00:28]} 14. g3 {[%clk 01:11:34]} {[%emt 00:10:12]} Nfg6
{[%clk 01:21:21]} {[%emt 00:02:08]} 15. exf5 {[%clk 01:09:20]} {[%emt
00:02:44]} Bxf5 {[%clk 01:21:21]} {[%emt 00:00:30]} 16. Ne4 {[%clk 01:03:47]}
{[%emt 00:06:03]} Qd7 {[%clk 01:20:27]} {[%emt 00:01:24]} 17. Nbd2 {[%clk
00:52:09]} {[%emt 00:12:07]} Rf7 {[%clk 01:19:27]} {[%emt 00:01:31]} 18. Ba3
{[%clk 00:44:12]} {[%emt 00:08:27]} Raf8 {[%clk 01:19:25]} {[%emt 00:00:32]} 19.
Rc1 {[%clk 00:42:34]} {[%emt 00:02:08]} Bg4 {[%clk 01:15:37]} {[%emt 00:04:17]}
20. Qb3 {[%clk 00:41:10]} {[%emt 00:01:55]} Nf5 {[%clk 01:15:17]} {[%emt
00:00:50]} 21. Bb2 {[%clk 00:39:34]} {[%emt 00:02:06]} Nd4 {[%clk 01:11:57]}
{[%emt 00:03:49]} 22. Bxd4 {[%clk 00:39:24]} {[%emt 00:00:41]} exd4 {[%clk
01:12:23]} {[%emt 00:00:04]} 23. c5 {[%clk 00:35:33]} {[%emt 00:04:20]} Ne5
{[%clk 01:10:57]} {[%emt 00:01:55]} 24. cxd6 {[%clk 00:25:33]} {[%emt
00:10:31]} cxd6 {[%clk 01:11:04]} {[%emt 00:00:24]} 25. b5 {[%clk 00:21:55]}
{[%emt 00:04:07]} Bh3 {[%clk 01:10:21]} {[%emt 00:01:13]} 26. Be2 {[%clk
00:18:22]} {[%emt 00:04:03]} d3 {[%clk 01:04:20]} {[%emt 00:06:31]} 27. Bd1
{[%clk 00:13:22]} {[%emt 00:05:30]} Bg4 {[%clk 00:58:48]} {[%emt 00:06:03]} 28.
Qb4 {[%clk 00:10:44]} {[%emt 00:03:08]} Bxd1 {[%clk 00:57:14]} {[%emt
00:02:04]} 29. Rexd1 {[%clk 00:08:38]} {[%emt 00:02:37]} Qh3 {[%clk 00:57:01]}
{[%emt 00:00:43]} 30. Qxd6 {[%clk 00:05:03]} {[%emt 00:04:05]} Ng4 {[%clk
00:56:11]} {[%emt 00:01:20]} 31. Nf1 {[%clk 00:05:31]} {[%emt 00:00:02]} Bd4
{[%clk 00:45:40]} {[%emt 00:11:01]} 32. Rd2 {[%clk 00:02:49]} {[%emt 00:03:13]}
Nxf2 {[%clk 00:38:22]} {[%emt 00:07:48]} 33. Rxf2 {[%clk 00:01:43]} {[%emt
00:01:36]} Rxf2 {[%clk 00:38:13]} {[%emt 00:00:39]} 34. Nxf2 {[%clk 00:01:05]}
{[%emt 00:01:07]} Rxf2 {[%clk 00:38:19]} {[%emt 00:00:24]} 35. Qg6+ {[%clk
00:01:29]} {[%emt 00:00:06]} Kf8 {[%clk 00:35:30]} {[%emt 00:03:20]} 36. Qd6+
{[%clk 00:01:21]} {[%emt 00:00:39]} Kg7 {[%clk 00:35:01]} {[%emt 00:00:58]} 37.
Qc7+ {[%clk 00:00:44]} {[%emt 00:01:07]} Rf7+ {[%clk 00:35:17]} {[%emt
00:00:13]} 38. Kh1 {[%clk 00:01:10]} {[%emt 00:00:04]} Rxc7 {[%clk 00:35:22]}
{[%emt 00:00:25]} 39. Rxc7+ {[%clk 00:01:38]} {[%emt 00:00:03]} Kg6 {[%clk
00:35:36]} {[%emt 00:00:16]} 40. Nd2 {[%clk 00:02:04]} {[%emt 00:00:04]} Qf5
{[%clk 00:35:37]} {[%emt 00:00:29]} 0-1

[Event "Kvibergspelen September 2019"]
[Site "Prioritet Serneke Arena, Krutvagen 2, Gothenburg, Sweden"]
[Date "2019.09.29"]
[Round "7.13"]
[White "Bruaset, Eivind"]
[Black "Pham, Bich Ngoc"]
[Result "1-0"]
[TimeControl "15 minutes + 5 seconds per move from move one (Round 1 - 4) / 90 minutes + 30 seconds per move from move one (Round 5 - 8)"]
[BlackTitle "WIM"]
[WhiteFideId "1515276"]
[BlackFideId "12401285"]
[WhiteElo "2181"]
[BlackElo "2244"]

1. e4 {[%clk 01:30:56]} {[%emt 00:00:02]} g6 {[%clk 01:23:24]} {[%emt
00:07:37]} 2. d4 {[%clk 01:31:11]} {[%emt 00:00:16]} Bg7 {[%clk 01:23:38]}
{[%emt 00:00:16]} 3. Nc3 {[%clk 01:31:26]} {[%emt 00:00:14]} d6 {[%clk
01:23:59]} {[%emt 00:00:09]} 4. f4 {[%clk 01:31:46]} {[%emt 00:00:10]} f5
{[%clk 01:21:09]} {[%emt 00:03:19]} 5. e5 {[%clk 01:18:53]} {[%emt 00:13:24]}
c5 {[%clk 01:19:09]} {[%emt 00:02:30]} 6. Be3 {[%clk 01:18:59]} {[%emt
00:00:25]} cxd4 {[%clk 01:17:30]} {[%emt 00:02:08]} 7. Bxd4 {[%clk 01:19:14]}
{[%emt 00:00:15]} Nc6 {[%clk 01:11:45]} {[%emt 00:06:15]} 8. Nf3 {[%clk
01:16:36]} {[%emt 00:03:08]} Nxd4 {[%clk 01:02:22]} {[%emt 00:09:53]} 9. Qxd4
{[%clk 01:14:12]} {[%emt 00:02:54]} Nh6 {[%clk 01:02:16]} {[%emt 00:00:35]} 10.
Bb5+ {[%clk 01:01:24]} {[%emt 00:13:19]} Bd7 {[%clk 01:01:39]} {[%emt
00:01:08]} 11. O-O-O {[%clk 00:57:47]} {[%emt 00:04:06]} Bxb5 {[%clk 00:51:31]}
{[%emt 00:10:39]} 12. Nxb5 {[%clk 00:57:52]} {[%emt 00:00:24]} a6 {[%clk
00:51:35]} {[%emt 00:00:26]} 13. Nc3 {[%clk 00:55:16]} {[%emt 00:03:06]} Nf7
{[%clk 00:48:27]} {[%emt 00:03:38]} 14. Qd5 {[%clk 00:50:44]} {[%emt 00:05:01]}
Qb6 {[%clk 00:33:59]} {[%emt 00:14:59]} 15. Rhe1 {[%clk 00:49:17]} {[%emt
00:01:57]} O-O {[%clk 00:32:43]} {[%emt 00:01:46]} 16. Qe6 {[%clk 00:46:16]}
{[%emt 00:03:31]} Kh8 {[%clk 00:27:47]} {[%emt 00:05:26]} 17. Rd3 {[%clk
00:37:19]} {[%emt 00:09:26]} Qa5 {[%clk 00:25:06]} {[%emt 00:03:13]} 18. Rd5
{[%clk 00:30:32]} {[%emt 00:07:17]} Qc7 {[%clk 00:24:53]} {[%emt 00:00:43]} 19.
Rd3 {[%clk 00:30:29]} {[%emt 00:00:34]} Rac8 {[%clk 00:24:03]} {[%emt
00:01:19]} 20. Re2 {[%clk 00:26:24]} {[%emt 00:04:35]} dxe5 {[%clk 00:16:47]}
{[%emt 00:07:46]} 21. fxe5 {[%clk 00:25:53]} {[%emt 00:01:01]} Nd8 {[%clk
00:15:45]} {[%emt 00:01:33]} 22. Qd7 {[%clk 00:24:25]} {[%emt 00:01:57]} e6
{[%clk 00:13:17]} {[%emt 00:02:58]} 23. Kb1 {[%clk 00:23:10]} {[%emt 00:01:44]}
Qb6 {[%clk 00:08:21]} {[%emt 00:05:27]} 24. Qxc8 {[%clk 00:23:24]} {[%emt
00:00:17]} 1-0

[Event "Kvibergspelen September 2019"]
[Site "Prioritet Serneke Arena, Krutvagen 2, Gothenburg, Sweden"]
[Date "2019.09.29"]
[Round "7.14"]
[White "Ronneland, Daniel"]
[Black "Petersson, Baldur Teodor"]
[Result "1-0"]
[TimeControl "15 minutes + 5 seconds per move from move one (Round 1 - 4) / 90 minutes + 30 seconds per move from move one (Round 5 - 8)"]
[BlackTitle "CM"]
[WhiteFideId "1702130"]
[BlackFideId "2309157"]
[WhiteElo "2137"]
[BlackElo "2238"]

1. e4 {[%clk 01:30:57]} {[%emt 00:00:02]} c5 {[%clk 01:30:13]} {[%emt
00:00:49]} 2. Nf3 {[%clk 01:31:11]} {[%emt 00:00:16]} e6 {[%clk 01:30:36]}
{[%emt 00:00:07]} 3. d4 {[%clk 01:31:36]} {[%emt 00:00:05]} cxd4 {[%clk
01:30:31]} {[%emt 00:00:35]} 4. Nxd4 {[%clk 01:31:57]} {[%emt 00:00:07]} a6
{[%clk 01:30:54]} {[%emt 00:00:08]} 5. c4 {[%clk 01:31:10]} {[%emt 00:01:15]}
Nf6 {[%clk 01:29:08]} {[%emt 00:02:18]} 6. Nc3 {[%clk 01:30:20]} {[%emt
00:01:20]} Qc7 {[%clk 01:28:49]} {[%emt 00:00:50]} 7. Be2 {[%clk 01:27:24]}
{[%emt 00:03:25]} b6 {[%clk 01:26:58]} {[%emt 00:02:21]} 8. Be3 {[%clk
01:20:25]} {[%emt 00:07:27]} Bb7 {[%clk 01:24:46]} {[%emt 00:02:43]} 9. f3
{[%clk 01:19:44]} {[%emt 00:01:11]} Be7 {[%clk 01:18:42]} {[%emt 00:06:35]} 10.
Rc1 {[%clk 01:14:39]} {[%emt 00:05:35]} d6 {[%clk 01:17:32]} {[%emt 00:01:40]}
11. g4 {[%clk 01:12:33]} {[%emt 00:02:35]} h6 {[%clk 01:13:14]} {[%emt
00:04:48]} 12. h4 {[%clk 01:10:30]} {[%emt 00:02:33]} Nbd7 {[%clk 00:51:25]}
{[%emt 00:22:19]} 13. Kd2 {[%clk 01:06:16]} {[%emt 00:04:43]} g6 {[%clk
00:45:06]} {[%emt 00:06:51]} 14. Kc2 {[%clk 01:06:00]} {[%emt 00:00:46]} Rd8
{[%clk 00:31:53]} {[%emt 00:13:42]} 15. Kb1 {[%clk 01:05:38]} {[%emt 00:00:51]}
Qb8 {[%clk 00:28:39]} {[%emt 00:03:45]} 16. Qd2 {[%clk 01:00:06]} {[%emt
00:06:01]} d5 {[%clk 00:22:30]} {[%emt 00:06:41]} 17. cxd5 {[%clk 00:54:19]}
{[%emt 00:06:18]} exd5 {[%clk 00:17:59]} {[%emt 00:05:00]} 18. g5 {[%clk
00:54:17]} {[%emt 00:00:32]} dxe4 {[%clk 00:16:32]} {[%emt 00:01:57]} 19. gxf6
{[%clk 00:53:33]} {[%emt 00:01:14]} Nxf6 {[%clk 00:17:00]} {[%emt 00:00:02]} 20.
Rhf1 {[%clk 00:34:35]} {[%emt 00:19:28]} Bc5 {[%clk 00:11:32]} {[%emt
00:05:58]} 21. f4 {[%clk 00:33:13]} {[%emt 00:01:51]} O-O {[%clk 00:08:23]}
{[%emt 00:03:40]} 22. Rfd1 {[%clk 00:24:07]} {[%emt 00:09:36]} Bc8 {[%clk
00:05:38]} {[%emt 00:03:15]} 23. Na4 {[%clk 00:23:29]} {[%emt 00:01:07]} Bxd4
{[%clk 00:02:47]} {[%emt 00:03:22]} 24. Bxd4 {[%clk 00:23:36]} {[%emt
00:00:22]} Bf5 {[%clk 00:03:10]} {[%emt 00:00:08]} 25. Ka1 {[%clk 00:21:40]}
{[%emt 00:02:26]} Nd5 {[%clk 00:02:48]} {[%emt 00:00:52]} 26. Be5 {[%clk
00:20:45]} {[%emt 00:01:26]} Qa7 {[%clk 00:02:01]} {[%emt 00:01:16]} 27. Bc4
{[%clk 00:18:32]} {[%emt 00:02:42]} b5 {[%clk 00:02:03]} {[%emt 00:00:29]} 28.
Bxd5 {[%clk 00:18:23]} {[%emt 00:00:39]} bxa4 {[%clk 00:02:08]} {[%emt
00:00:25]} 29. Qg2 {[%clk 00:16:03]} {[%emt 00:02:49]} Qe3 {[%clk 00:01:29]}
{[%emt 00:01:10]} 30. Re1 {[%clk 00:13:02]} {[%emt 00:03:31]} Rc8 {[%clk
00:01:30]} {[%emt 00:00:30]} 31. Bc3 {[%clk 00:12:35]} {[%emt 00:00:56]} Qxf4
{[%clk 00:01:52]} {[%emt 00:00:09]} 32. Bxe4 {[%clk 00:12:33]} {[%emt
00:00:31]} Bxe4 {[%clk 00:01:00]} {[%emt 00:01:23]} 33. Qxe4 {[%clk 00:12:56]}
{[%emt 00:00:07]} Qxe4 {[%clk 00:01:26]} {[%emt 00:00:04]} 34. Rxe4 {[%clk
00:13:20]} {[%emt 00:00:05]} a3 {[%clk 00:01:52]} {[%emt 00:00:04]} 35. bxa3
{[%clk 00:11:31]} {[%emt 00:02:19]} Rfd8 {[%clk 00:01:02]} {[%emt 00:01:20]} 36.
Kb2 {[%clk 00:11:08]} {[%emt 00:00:51]} Rd3 {[%clk 00:01:00]} {[%emt 00:00:33]}
37. a4 {[%clk 00:11:09]} {[%emt 00:00:30]} Rh3 {[%clk 00:01:04]} {[%emt
00:00:26]} 38. a5 {[%clk 00:09:56]} {[%emt 00:01:43]} g5 {[%clk 00:01:08]}
{[%emt 00:00:27]} 39. hxg5 {[%clk 00:09:07]} {[%emt 00:01:19]} hxg5 {[%clk
00:01:36]} 40. Rg4 {[%clk 00:07:50]} {[%emt 00:01:46]} Rc5 {[%clk 00:01:43]}
{[%emt 00:00:24]} 41. Bf6 {[%clk 00:07:24]} {[%emt 00:00:55]} Rh2+ {[%clk
00:01:50]} {[%emt 00:00:24]} 42. Kb1 {[%clk 00:07:45]} {[%emt 00:00:08]} Rxc1+
{[%clk 00:00:43]} {[%emt 00:01:38]} 43. Kxc1 {[%clk 00:08:07]} {[%emt
00:00:07]} Rxa2 {[%clk 00:00:52]} {[%emt 00:00:22]} 44. Rxg5+ {[%clk 00:08:31]}
{[%emt 00:00:06]} Kh7 {[%clk 00:01:05]} {[%emt 00:00:16]} 45. Bb2 {[%clk
00:06:58]} {[%emt 00:02:04]} Ra4 {[%clk 00:01:25]} {[%emt 00:00:11]} 46. Kc2
{[%clk 00:06:41]} {[%emt 00:00:46]} Kh6 {[%clk 00:01:36]} {[%emt 00:00:19]} 47.
Kb3 {[%clk 00:06:27]} {[%emt 00:00:44]} Kxg5 {[%clk 00:00:32]} {[%emt
00:01:34]} 48. Kxa4 {[%clk 00:06:50]} {[%emt 00:00:06]} Kf5 {[%clk 00:00:58]}
{[%emt 00:00:04]} 49. Kb4 {[%clk 00:07:06]} {[%emt 00:00:13]} Ke6 {[%clk
00:01:24]} {[%emt 00:00:04]} 50. Kc5 {[%clk 00:07:17]} {[%emt 00:00:19]} Kd7
{[%clk 00:01:11]} {[%emt 00:00:43]} 51. Kb6 {[%clk 00:07:32]} {[%emt 00:00:15]}
Kc8 {[%clk 00:01:37]} {[%emt 00:00:04]} 52. Be5 {[%clk 00:07:56]} {[%emt
00:00:05]} f6 {[%clk 00:02:03]} {[%emt 00:00:05]} 53. Bf4 {[%clk 00:08:22]}
{[%emt 00:00:04]} 1-0

[Event "Kvibergspelen September 2019"]
[Site "Prioritet Serneke Arena, Krutvagen 2, Gothenburg, Sweden"]
[Date "2019.09.29"]
[Round "7.15"]
[White "Crevatin, Leo"]
[Black "Rasti, Arvin"]
[Result "1/2-1/2"]
[TimeControl "15 minutes + 5 seconds per move from move one (Round 1 - 4) / 90 minutes + 30 seconds per move from move one (Round 5 - 8)"]
[WhiteTitle "CM"]
[WhiteFideId "1726307"]
[BlackFideId "1741160"]
[WhiteElo "2235"]
[BlackElo "2182"]

1. c4 {[%clk 01:28:02]} {[%emt 00:02:58]} e5 {[%clk 01:30:20]} {[%emt
00:00:41]} 2. Nc3 {[%clk 01:28:14]} {[%emt 00:00:18]} Nc6 {[%clk 01:30:33]}
{[%emt 00:00:16]} 3. g3 {[%clk 01:26:57]} {[%emt 00:01:48]} f5 {[%clk
01:30:38]} {[%emt 00:00:25]} 4. Bg2 {[%clk 01:27:24]} {[%emt 00:00:02]} Nf6
{[%clk 01:31:01]} {[%emt 00:00:07]} 5. d3 {[%clk 01:26:42]} {[%emt 00:01:12]}
Bb4 {[%clk 01:30:20]} {[%emt 00:01:11]} 6. Bd2 {[%clk 01:27:05]} {[%emt
00:00:07]} O-O {[%clk 01:30:41]} {[%emt 00:00:08]} 7. Nd5 {[%clk 01:23:41]}
{[%emt 00:03:55]} Bxd2+ {[%clk 01:28:10]} {[%emt 00:03:01]} 8. Qxd2 {[%clk
01:24:03]} {[%emt 00:00:09]} d6 {[%clk 01:28:22]} {[%emt 00:00:17]} 9. e3
{[%clk 01:23:18]} {[%emt 00:01:15]} Nxd5 {[%clk 01:22:56]} {[%emt 00:05:56]} 10.
cxd5 {[%clk 01:19:13]} {[%emt 00:04:35]} Ne7 {[%clk 01:23:17]} {[%emt
00:00:09]} 11. Ne2 {[%clk 01:18:20]} {[%emt 00:01:23]} c6 {[%clk 01:11:38]}
{[%emt 00:12:09]} 12. dxc6 {[%clk 01:12:24]} {[%emt 00:06:26]} bxc6 {[%clk
01:11:19]} {[%emt 00:00:49]} 13. O-O {[%clk 01:05:53]} {[%emt 00:07:01]} Rb8
{[%clk 01:05:56]} {[%emt 00:05:53]} 14. Rac1 {[%clk 01:02:37]} {[%emt
00:03:46]} Qb6 {[%clk 01:01:40]} {[%emt 00:04:46]} 15. b3 {[%clk 01:03:00]}
{[%emt 00:00:06]} Be6 {[%clk 01:01:39]} {[%emt 00:00:30]} 16. e4 {[%clk
00:53:28]} {[%emt 00:10:03]} c5 {[%clk 00:52:25]} {[%emt 00:09:44]} 17. Kh1
{[%clk 00:46:48]} {[%emt 00:07:09]} Nc6 {[%clk 00:41:27]} {[%emt 00:11:29]} 18.
f4 {[%clk 00:43:24]} {[%emt 00:03:55]} Nb4 {[%clk 00:35:08]} {[%emt 00:06:48]}
19. Nc3 {[%clk 00:37:28]} {[%emt 00:06:27]} 1/2-1/2

[Event "Kvibergspelen September 2019"]
[Site "Prioritet Serneke Arena, Krutvagen 2, Gothenburg, Sweden"]
[Date "2019.09.29"]
[Round "7.16"]
[White "Skou, Niels"]
[Black "Sjoberg, Isak"]
[Result "0-1"]
[TimeControl "15 minutes + 5 seconds per move from move one (Round 1 - 4) / 90 minutes + 30 seconds per move from move one (Round 5 - 8)"]
[WhiteFideId "1413155"]
[BlackFideId "1521640"]
[WhiteElo "2082"]
[BlackElo "2231"]

1. d4 {[%clk 01:30:16]} {[%emt 00:00:43]} Nf6 {[%clk 01:30:42]} {[%emt
00:00:18]} 2. c4 {[%clk 01:30:36]} {[%emt 00:00:10]} g6 {[%clk 01:30:33]}
{[%emt 00:00:39]} 3. Nc3 {[%clk 01:30:50]} {[%emt 00:00:16]} Bg7 {[%clk
01:30:56]} {[%emt 00:00:06]} 4. e4 {[%clk 01:31:16]} {[%emt 00:00:04]} d6
{[%clk 01:31:01]} {[%emt 00:00:27]} 5. Nf3 {[%clk 01:31:36]} {[%emt 00:00:10]}
O-O {[%clk 01:31:12]} {[%emt 00:00:18]} 6. Be2 {[%clk 01:31:58]} {[%emt
00:00:08]} e5 {[%clk 01:30:03]} {[%emt 00:01:38]} 7. d5 {[%clk 01:31:28]}
{[%emt 00:01:01]} a5 {[%clk 01:30:16]} {[%emt 00:00:17]} 8. Bg5 {[%clk
01:31:05]} {[%emt 00:00:53]} h6 {[%clk 01:27:45]} {[%emt 00:03:01]} 9. Bh4
{[%clk 01:30:51]} {[%emt 00:00:43]} g5 {[%clk 01:24:25]} {[%emt 00:03:50]} 10.
Bg3 {[%clk 01:31:16]} {[%emt 00:00:04]} Nh5 {[%clk 01:24:36]} {[%emt 00:00:20]}
11. h4 {[%clk 01:31:32]} {[%emt 00:00:13]} g4 {[%clk 01:16:55]} {[%emt
00:08:12]} 12. Nd2 {[%clk 01:29:07]} {[%emt 00:02:55]} Nxg3 {[%clk 01:12:14]}
{[%emt 00:05:11]} 13. fxg3 {[%clk 01:29:32]} {[%emt 00:00:04]} h5 {[%clk
01:12:12]} {[%emt 00:00:33]} 14. O-O {[%clk 01:28:23]} {[%emt 00:01:38]} Na6
{[%clk 01:09:13]} {[%emt 00:03:30]} 15. Bd3 {[%clk 01:20:57]} {[%emt 00:07:56]}
c6 {[%clk 00:57:49]} {[%emt 00:11:55]} 16. Kh2 {[%clk 01:15:33]} {[%emt
00:05:52]} Rb8 {[%clk 00:40:42]} {[%emt 00:17:38]} 17. Qe2 {[%clk 01:09:54]}
{[%emt 00:06:08]} Bd7 {[%clk 00:35:17]} {[%emt 00:05:56]} 18. Rf2 {[%clk
01:00:19]} {[%emt 00:10:04]} Nb4 {[%clk 00:30:35]} {[%emt 00:05:13]} 19. Nf1
{[%clk 00:55:27]} {[%emt 00:05:22]} Bh6 {[%clk 00:28:07]} {[%emt 00:02:59]} 20.
Ne3 {[%clk 00:47:11]} {[%emt 00:08:46]} Bf4 {[%clk 00:28:22]} {[%emt 00:00:14]}
21. Rxf4 {[%clk 00:38:46]} {[%emt 00:08:55]} exf4 {[%clk 00:28:43]} {[%emt
00:00:09]} 22. Nf5 {[%clk 00:35:39]} {[%emt 00:03:37]} fxg3+ {[%clk 00:28:53]}
{[%emt 00:00:20]} 23. Kxg3 {[%clk 00:36:06]} {[%emt 00:00:03]} Bxf5 {[%clk
00:28:34]} {[%emt 00:00:49]} 24. exf5 {[%clk 00:36:34]} {[%emt 00:00:02]} Re8
{[%clk 00:28:14]} {[%emt 00:00:50]} 25. Be4 {[%clk 00:36:02]} {[%emt 00:01:02]}
cxd5 {[%clk 00:27:16]} {[%emt 00:01:29]} 26. cxd5 {[%clk 00:36:18]} {[%emt
00:00:14]} Qf6 {[%clk 00:26:08]} {[%emt 00:01:37]} 27. Qe3 {[%clk 00:33:56]}
{[%emt 00:02:51]} 0-1

[Event "Kvibergspelen September 2019"]
[Site "Prioritet Serneke Arena, Krutvagen 2, Gothenburg, Sweden"]
[Date "2019.09.29"]
[Round "7.17"]
[White "Frisk, Ellinor"]
[Black "Hardlei, Johan"]
[Result "1-0"]
[TimeControl "15 minutes + 5 seconds per move from move one (Round 1 - 4) / 90 minutes + 30 seconds per move from move one (Round 5 - 8)"]
[WhiteTitle "WIM"]
[WhiteFideId "1708481"]
[BlackFideId "1440489"]
[WhiteElo "2227"]
[BlackElo "2054"]

1. e4 {[%clk 01:30:57]} {[%emt 00:00:02]} c5 {[%clk 01:30:38]} {[%emt
00:00:23]} 2. Nc3 {[%clk 01:31:18]} {[%emt 00:00:09]} Nc6 {[%clk 01:29:45]}
{[%emt 00:01:23]} 3. Bb5 {[%clk 01:31:39]} {[%emt 00:00:09]} Nd4 {[%clk
01:29:06]} {[%emt 00:01:09]} 4. Bc4 {[%clk 01:32:00]} {[%emt 00:00:10]} g6
{[%clk 01:27:18]} {[%emt 00:02:17]} 5. Nf3 {[%clk 01:30:23]} {[%emt 00:02:07]}
d6 {[%clk 01:21:04]} {[%emt 00:06:45]} 6. Nxd4 {[%clk 01:22:52]} {[%emt
00:08:00]} cxd4 {[%clk 01:21:21]} {[%emt 00:00:13]} 7. Nb5 {[%clk 01:23:11]}
{[%emt 00:00:11]} Bg7 {[%clk 01:04:17]} {[%emt 00:17:34]} 8. Qf3 {[%clk
01:20:08]} {[%emt 00:03:32]} Nh6 {[%clk 01:00:03]} {[%emt 00:04:45]} 9. d3
{[%clk 01:13:40]} {[%emt 00:06:58]} O-O {[%clk 00:59:34]} {[%emt 00:00:59]} 10.
Nxd4 {[%clk 00:51:55]} {[%emt 00:22:15]} Ng4 {[%clk 00:36:19]} {[%emt
00:23:44]} 11. c3 {[%clk 00:47:11]} {[%emt 00:05:14]} Qb6 {[%clk 00:26:25]}
{[%emt 00:10:24]} 12. h3 {[%clk 00:38:42]} {[%emt 00:08:59]} Ne5 {[%clk
00:24:14]} {[%emt 00:02:41]} 13. Qe3 {[%clk 00:39:06]} {[%emt 00:00:06]} Nxc4
{[%clk 00:23:41]} {[%emt 00:01:04]} 14. dxc4 {[%clk 00:39:34]} {[%emt
00:00:02]} Bxd4 {[%clk 00:20:00]} {[%emt 00:04:11]} 15. Qxd4 {[%clk 00:39:03]}
{[%emt 00:01:01]} Qxd4 {[%clk 00:17:20]} {[%emt 00:03:10]} 16. cxd4 {[%clk
00:39:30]} {[%emt 00:00:02]} Be6 {[%clk 00:15:48]} {[%emt 00:02:02]} 17. b3
{[%clk 00:37:17]} {[%emt 00:02:43]} a6 {[%clk 00:13:22]} {[%emt 00:02:57]} 18.
Be3 {[%clk 00:35:54]} {[%emt 00:01:53]} b5 {[%clk 00:09:31]} {[%emt 00:04:21]}
19. c5 {[%clk 00:35:29]} {[%emt 00:00:55]} d5 {[%clk 00:09:17]} {[%emt
00:00:45]} 20. Bh6 {[%clk 00:25:40]} {[%emt 00:10:18]} Rfb8 {[%clk 00:07:18]}
{[%emt 00:02:30]} 21. e5 {[%clk 00:25:06]} {[%emt 00:01:04]} Bd7 {[%clk
00:04:44]} {[%emt 00:03:04]} 22. Kd2 {[%clk 00:23:15]} {[%emt 00:02:21]} f5
{[%clk 00:04:29]} {[%emt 00:00:45]} 23. exf6 {[%clk 00:17:00]} {[%emt
00:06:45]} exf6 {[%clk 00:04:52]} {[%emt 00:00:06]} 24. Bf4 {[%clk 00:16:57]}
{[%emt 00:00:33]} Re8 {[%clk 00:04:32]} {[%emt 00:00:50]} 25. Rhe1 {[%clk
00:17:11]} {[%emt 00:00:16]} Kf7 {[%clk 00:03:51]} {[%emt 00:01:12]} 26. Kc3
{[%clk 00:13:04]} {[%emt 00:04:37]} Bc6 {[%clk 00:00:44]} {[%emt 00:03:36]} 27.
f3 {[%clk 00:11:24]} {[%emt 00:02:10]} Rxe1 {[%clk 00:00:51]} {[%emt 00:00:23]}
28. Rxe1 {[%clk 00:11:51]} {[%emt 00:00:02]} a5 {[%clk 00:01:10]} {[%emt
00:00:12]} 29. Bc7 {[%clk 00:09:21]} {[%emt 00:03:00]} a4 {[%clk 00:01:00]}
{[%emt 00:00:40]} 30. Bd6 {[%clk 00:07:14]} {[%emt 00:02:36]} Re8 {[%clk
00:01:10]} {[%emt 00:00:20]} 31. Rxe8 Kxe8 {[%clk 00:01:39]} 32. Kb4 {[%clk
00:05:35]} {[%emt 00:00:43]} Kd8 {[%clk 00:00:39]} {[%emt 00:01:30]} 33. Ka5
{[%clk 00:05:56]} {[%emt 00:00:09]} axb3 {[%clk 00:00:35]} {[%emt 00:00:35]} 34.
axb3 {[%clk 00:06:19]} {[%emt 00:00:06]} Kc8 {[%clk 00:00:34]} {[%emt
00:00:31]} 35. Kb6 {[%clk 00:06:44]} {[%emt 00:00:05]} Bd7 {[%clk 00:00:38]}
{[%emt 00:00:26]} 36. h4 {[%clk 00:04:52]} {[%emt 00:02:21]} Bf5 {[%clk
00:00:40]} {[%emt 00:00:29]} 37. Kxb5 {[%clk 00:04:10]} {[%emt 00:01:12]} Kb7
{[%clk 00:00:33]} {[%emt 00:00:37]} 38. c6+ {[%clk 00:04:18]} {[%emt 00:00:21]}
Ka7 {[%clk 00:00:38]} {[%emt 00:00:25]} 39. Kc5 {[%clk 00:04:24]} {[%emt
00:00:24]} Bc2 {[%clk 00:00:44]} {[%emt 00:00:25]} 40. b4 {[%clk 00:04:42]}
{[%emt 00:00:13]} Bb3 {[%clk 00:00:34]} {[%emt 00:00:40]} 41. b5 {[%clk
00:04:58]} {[%emt 00:00:14]} 1-0